bitfinex/quotes_BTCUSD_20250324
["timestamp","ask_amount","ask_price","bid_price","bid_amount"]
[1742833054979,0.68285519,88401.0,88400.0,0.00023028]
[1742833061117,0.69739604,88401.0,88400.0,0.00023028]
[1742833061484,0.81165368,88401.0,88400.0,0.00023028]
[1742833064688,0.93997368,88401.0,88400.0,0.00023028]
[1742833068721,0.82571604,88401.0,88400.0,0.00023028]
[1742833068924,0.69739604,88401.0,88400.0,0.00023028]
[1742833070767,0.69739604,88401.0,88400.0,0.22647428]
[1742833070768,0.03104455,88401.0,88400.0,0.22647428]
[1742833070951,0.03104455,88401.0,88400.0,0.27287428]
[1742833070952,0.02837068,88401.0,88400.0,0.27287428]
[1742833071401,0.03099834,88401.0,88400.0,0.04663028]
[1742833071572,0.32699834,88401.0,88400.0,0.04663028]
[1742833071795,0.32499834,88401.0,88400.0,0.04663028]
[1742833072005,0.32699834,88401.0,88400.0,0.04663028]
[1742833072209,0.32799834,88401.0,88400.0,0.27287428]
[1742833072412,0.55876301,88401.0,88400.0,0.00023028]
[1742833072612,0.79954486,88401.0,88400.0,0.00023028]
[1742833074420,0.79954486,88401.0,88369.0,0.10063572]
[1742833074421,0.537637,88370.0,88369.0,0.10063572]
[1742833074673,0.537637,88370.0,88369.0,0.10075912]
[1742833074871,0.65450279,88370.0,88369.0,0.10075912]
[1742833075075,0.65450279,88370.0,88369.0,0.0001234]
[1742833075281,0.65450279,88370.0,88362.0,0.0782]
[1742833075282,0.78330128,88370.0,88362.0,0.0782]
[1742833075501,0.78330128,88370.0,88365.0,0.00029313]
[1742833075502,0.3,88366.0,88365.0,0.00029313]
[1742833075686,0.30258244,88366.0,88365.0,0.00029313]
[1742833075864,0.33655164,88366.0,88365.0,0.00029313]
[1742833076080,0.57419864,88366.0,88365.0,0.00029313]
[1742833076463,0.32526103,88366.0,88365.0,0.00029313]
[1742833076663,0.30258244,88366.0,88365.0,0.22662613]
[1742833077247,0.30258244,88366.0,88365.0,0.00029313]
[1742833078067,0.30258244,88366.0,88365.0,0.00229313]
[1742833078355,0.00258244,88366.0,88365.0,0.24966677]
[1742833078564,0.011314,88379.0,88373.0,0.0765]
[1742833078776,0.3,88376.0,88373.0,0.30281]
[1742833078978,0.22631,88374.0,88373.0,0.0765]
[1742833079193,0.24021863,88374.0,88373.0,0.0765]
[1742833079404,0.237647,88366.0,88365.0,0.04759313]
[1742833079859,0.54024654,88366.0,88365.0,0.00229313]
[1742833080065,0.63417114,88366.0,88365.0,0.00229313]
[1742833080846,0.63417114,88366.0,88365.0,0.00029313]
[1742833081260,0.74842878,88366.0,88365.0,0.00029313]
[1742833081496,0.76296963,88366.0,88365.0,0.00029313]
[1742833081910,0.76296963,88366.0,88365.0,0.00129313]
[1742833082207,0.76296963,88366.0,88365.0,0.00029313]
[1742833083000,0.76396963,88366.0,88365.0,0.00029313]
[1742833083212,0.237685,88352.0,88351.0,0.08662883]
[1742833083417,0.237685,88352.0,88351.0,0.08675234]
[1742833083613,0.54025137,88352.0,88351.0,0.08675234]
[1742833083853,0.54025137,88352.0,88351.0,0.00585234]
[1742833084226,0.66904986,88352.0,88351.0,0.00585234]
[1742833084438,0.71840039,88352.0,88351.0,0.00585234]
[1742833084642,0.66904986,88352.0,88351.0,0.00585234]
[1742833084840,0.66904986,88352.0,88351.0,0.00885234]
[1742833084997,0.66904986,88352.0,88351.0,0.00585234]
[1742833085903,0.70306386,88352.0,88351.0,0.00585234]
[1742833086313,0.59660034,88352.0,88351.0,0.00585234]
[1742833086539,0.35891534,88352.0,88351.0,0.00585234]
[1742833086742,0.37023334,88352.0,88351.0,0.00585234]
[1742833087180,0.45047698,88352.0,88351.0,0.00585234]
[1742833087564,0.67684398,88352.0,88351.0,0.00585234]
[1742833088517,0.69138483,88352.0,88351.0,0.00585234]
[1742833088725,0.69338483,88352.0,88351.0,0.00585234]
[1742833088934,0.56458634,88352.0,88351.0,0.00585234]
[1742833091522,0.00456637,88352.0,88351.0,0.31452134]
[1742833091698,0.002,88352.0,88351.0,0.36068707]
[1742833092060,0.002,88352.0,88351.0,0.48649698]
[1742833092618,0.011318,88352.0,88351.0,0.13455234]
[1742833092820,0.237685,88352.0,88351.0,0.08815234]
[1742833093018,0.237685,88352.0,88351.0,0.09015234]
[1742833093222,0.24016658,88352.0,88351.0,0.08815234]
[1742833093448,0.22884858,88352.0,88351.0,0.08815234]
[1742833093767,0.24016658,88352.0,88351.0,0.08815234]
[1742833094497,0.24016658,88352.0,88351.0,0.09115234]
[1742833095535,0.00248158,88352.0,88351.0,0.08815234]
[1742833095738,0.00248158,88352.0,88351.0,0.09015234]
[1742833095960,0.011317,88356.0,88351.0,0.31652134]
[1742833096134,0.011317,88356.0,88351.0,0.09015234]
[1742833096135,0.226367,88352.0,88351.0,0.09015234]
[1742833096360,0.226367,88352.0,88351.0,0.09032214]
[1742833096565,0.5401706,88352.0,88351.0,0.00802214]
[1742833098120,0.5401706,88352.0,88351.0,0.00602214]
[1742833098302,0.5401706,88352.0,88351.0,0.00802214]
[1742833098922,0.56289543,88352.0,88351.0,0.00802214]
[1742833099624,0.56289543,88352.0,88351.0,0.00602214]
[1742833101086,0.56289543,88352.0,88351.0,0.00802214]
[1742833106048,0.69169392,88352.0,88351.0,0.00802214]
[1742833107444,0.69169392,88352.0,88331.0,0.002]
[1742833107445,0.537735,88333.0,88331.0,0.002]
[1742833107644,0.66653349,88333.0,88331.0,0.002]
[1742833107891,0.66898371,88333.0,88331.0,0.002]
[1742833108250,0.67351971,88333.0,88331.0,0.002]
[1742833108566,0.67351971,88333.0,88332.0,0.0011699]
[1742833108966,0.67351971,88333.0,88332.0,0.0001699]
[1742833108967,0.30698622,88333.0,88332.0,0.0001699]
[1742833110187,0.30798622,88333.0,88332.0,0.0001699]
[1742833111044,0.31924462,88333.0,88332.0,0.0001699]
[1742833112324,0.55697962,88333.0,88332.0,0.0001699]
[1742833113992,0.57979773,88333.0,88332.0,0.0001699]
[1742833115147,0.70859622,88333.0,88332.0,0.0001699]
[1742833115448,0.70859622,88333.0,88316.0,0.0757]
[1742833115449,0.011323,88312.0,88303.0,0.0822]
[1742833115656,0.237792,88312.0,88303.0,0.0822]
[1742833115974,0.24018268,88312.0,88303.0,0.0822]
[1742833116918,0.24018268,88312.0,88311.0,0.00058197]
[1742833117762,0.24018268,88312.0,88311.0,0.00158197]
[1742833118795,0.36898117,88312.0,88311.0,0.00158197]
[1742833118996,0.66898117,88312.0,88311.0,0.00158197]
[1742833119721,0.537819,88302.0,88292.0,0.0477]
[1742833120129,0.54020806,88302.0,88292.0,0.0477]
[1742833120895,0.54020806,88302.0,88301.0,0.003]
[1742833122202,0.54020806,88302.0,88301.0,0.0031699]
[1742833122828,0.66900655,88302.0,88301.0,0.0031699]
[1742833124228,0.66900655,88302.0,88301.0,0.0021699]
[1742833124400,0.55474891,88302.0,88301.0,0.0021699]
[1742833124830,0.55574891,88302.0,88301.0,0.0021699]
[1742833125275,0.30338906,88302.0,88301.0,0.0021699]
[1742833125476,0.52988406,88302.0,88301.0,0.1248699]
[1742833126017,0.30338906,88302.0,88301.0,0.1248699]
[1742833126211,0.30338906,88302.0,88301.0,0.3513679]
[1742833126601,0.30338906,88302.0,88301.0,0.1248699]
[1742833126798,0.30338906,88302.0,88301.0,0.3626919]
[1742833127359,0.30338906,88302.0,88301.0,0.3513679]
[1742833128084,0.54020806,88302.0,88301.0,0.1248699]
[1742833128421,0.52888406,88302.0,88301.0,0.1248699]
[1742833128659,0.30238906,88302.0,88301.0,0.1258699]
[1742833128858,0.30238906,88302.0,88301.0,0.3636919]
[1742833128859,0.00238906,88302.0,88301.0,0.3636919]
[1742833129130,0.00238906,88302.0,88301.0,0.3523679]
[1742833129308,0.226488,88305.0,88302.0,0.226492]
[1742833129506,0.226491,88304.0,88301.0,0.3523659]
[1742833129705,0.00228661,88304.0,88302.0,0.226494]
[1742833130292,0.226488,88305.0,88302.0,0.226494]
[1742833130487,0.00228661,88303.0,88302.0,0.226494]
[1742833130709,0.226488,88305.0,88302.0,0.226494]
[1742833130912,0.00228742,88303.0,88301.0,0.3523659]
[1742833131118,0.237812,88305.0,88301.0,0.3513669]
[1742833131275,0.00228742,88302.0,88301.0,0.3513669]
[1742833131473,0.00228742,88302.0,88301.0,0.1248699]
[1742833131677,0.226495,88302.0,88301.0,0.1248699]
[1742833132011,0.24010722,88302.0,88301.0,0.0021699]
[1742833132182,0.24010722,88302.0,88301.0,0.0031699]
[1742833132406,0.24010722,88302.0,88301.0,0.0021699]
[1742833133720,0.24010722,88302.0,88301.0,0.0031699]
[1742833133927,0.24010722,88302.0,88301.0,0.0021699]
[1742833134335,0.24010722,88302.0,88301.0,0.0031699]
[1742833134520,0.24010722,88302.0,88301.0,0.0021699]
[1742833134925,0.24010722,88302.0,88301.0,0.0031699]
[1742833135135,0.24010722,88302.0,88301.0,0.0021699]
[1742833135450,0.01361222,88302.0,88301.0,0.0031699]
[1742833135653,0.00228822,88302.0,88301.0,0.0031699]
[1742833136052,0.22878322,88302.0,88301.0,0.0031699]
[1742833136474,0.00228822,88302.0,88301.0,0.2296679]
[1742833136881,0.22649,88304.0,88301.0,0.2296679]
[1742833137078,0.00228822,88302.0,88301.0,0.2296679]
[1742833137278,0.237819,88302.0,88301.0,0.0031699]
[1742833137496,0.24010722,88302.0,88301.0,0.0031699]
[1742833137713,0.24010722,88302.0,88301.0,0.0021699]
[1742833138085,0.24010722,88302.0,88301.0,0.0031699]
[1742833138291,0.24010722,88302.0,88301.0,0.0021699]
[1742833138689,0.24010722,88302.0,88301.0,0.0031699]
[1742833143493,0.24010722,88302.0,88301.0,0.0021699]
[1742833143956,0.24010722,88302.0,88301.0,0.0031699]
[1742833144154,0.54010722,88302.0,88301.0,0.0031699]
[1742833147063,0.66890571,88302.0,88301.0,0.0031699]
[1742833147663,0.66890571,88302.0,88301.0,0.0021699]
[1742833148164,0.65436486,88302.0,88301.0,0.0021699]
[1742833148374,0.54010722,88302.0,88301.0,0.0021699]
[1742833149182,0.54110722,88302.0,88301.0,0.0021699]
[1742833149769,0.30328822,88302.0,88301.0,0.0021699]
[1742833149972,0.52978322,88302.0,88301.0,0.0021699]
[1742833150208,0.54110722,88302.0,88301.0,0.0021699]
[1742833150582,0.00328822,88302.0,88301.0,0.0021699]
[1742833150778,0.00328822,88302.0,88301.0,0.2740679]
[1742833150980,0.001,88302.0,88301.0,0.0475699]
[1742833151185,0.22879013,88302.0,88301.0,0.0475699]
[1742833151387,0.226495,88302.0,88301.0,0.0475699]
[1742833151505,0.22978933,88302.0,88301.0,0.0475699]
[1742833151711,0.22978933,88302.0,88301.0,0.0485699]
[1742833152115,0.22878933,88302.0,88301.0,0.0485699]
[1742833153857,0.00229433,88302.0,88301.0,0.0485699]
[1742833154034,0.226493,88303.0,88301.0,0.0485699]
[1742833154235,0.00229433,88302.0,88301.0,0.0485699]
[1742833154432,0.22878933,88302.0,88301.0,0.0485699]
[1742833154638,0.24011333,88302.0,88301.0,0.0485699]
[1742833155406,0.24011333,88302.0,88301.0,0.0031699]
[1742833163741,0.24011333,88302.0,88301.0,0.0021699]
[1742833164110,0.24011333,88302.0,88301.0,0.0031699]
[1742833164318,0.24011333,88302.0,88301.0,0.0021699]
[1742833165824,0.24011333,88302.0,88301.0,0.0031699]
[1742833168136,0.00229433,88302.0,88301.0,0.04992119]
[1742833168339,0.00229433,88302.0,88301.0,0.06124519]
[1742833168539,0.00229433,88302.0,88301.0,0.0031699]
[1742833168745,0.226495,88302.0,88301.0,0.0031699]
[1742833168997,0.22880362,88302.0,88301.0,0.0031699]
[1742833169687,0.24012762,88302.0,88301.0,0.0031699]
[1742833175502,0.54012762,88302.0,88301.0,0.0031699]
[1742833175702,0.66892611,88302.0,88301.0,0.0031699]
[1742833176737,0.66992611,88302.0,88301.0,0.0021699]
[1742833177245,0.66992611,88302.0,88301.0,9e-07]
[1742833177442,0.74562611,88302.0,88301.0,9e-07]
[1742833178609,0.74962611,88302.0,88301.0,9e-07]
[1742833178803,0.79502611,88302.0,88301.0,9e-07]
[1742833179032,0.83306411,88302.0,88301.0,9e-07]
[1742833179251,0.83606411,88302.0,88301.0,9e-07]
[1742833179586,0.83606411,88302.0,88267.0,0.17623572]
[1742833179587,0.5379,88272.0,88267.0,0.10063572]
[1742833179790,0.5379,88272.0,88271.0,0.00212354]
[1742833179988,0.54017858,88272.0,88271.0,0.00212354]
[1742833182201,0.54017858,88272.0,88271.0,0.00312354]
[1742833182809,0.54017858,88272.0,88271.0,0.00329344]
[1742833185266,0.55143598,88272.0,88271.0,0.00329344]
[1742833185710,0.57447456,88272.0,88271.0,0.00329344]
[1742833186261,0.6887322,88272.0,88271.0,0.00329344]
[1742833186651,0.6887322,88272.0,88271.0,0.00229344]
[1742833186879,0.6887322,88272.0,88271.0,0.00329344]
[1742833188487,0.70327305,88272.0,88271.0,0.00329344]
[1742833189030,0.70327305,88272.0,88271.0,0.00229344]
[1742833189522,0.70427305,88272.0,88271.0,0.00229344]
[1742833190032,0.70327305,88272.0,88271.0,0.00229344]
[1742833190580,0.70427305,88272.0,88271.0,0.00229344]
[1742833193665,0.70327305,88272.0,88271.0,0.00229344]
[1742833193875,0.70427305,88272.0,88271.0,0.00229344]
[1742833194284,0.70627305,88272.0,88271.0,0.00229344]
[1742833196605,0.57747456,88272.0,88271.0,0.00229344]
[1742833202793,0.62707456,88272.0,88271.0,0.00229344]
[1742833203004,0.75587305,88272.0,88271.0,0.00229344]
[1742833203210,0.83087305,88272.0,88271.0,0.00229344]
[1742833204269,0.82787305,88272.0,88271.0,0.00229344]
[1742833204632,0.83487305,88272.0,88271.0,0.00229344]
[1742833205009,0.83187305,88272.0,88271.0,0.00229344]
[1742833205209,0.83487305,88272.0,88271.0,0.00229344]
[1742833205412,0.95013069,88272.0,88271.0,4.4e-07]
[1742833206553,0.95013069,88272.0,88262.0,0.0134357]
[1742833206554,0.542924,88263.0,88262.0,1.4e-07]
[1742833206868,0.55251685,88244.0,88243.0,0.0001699]
[1742833207201,0.79730554,88244.0,88243.0,0.00058177]
[1742833207511,0.79517449,88244.0,88243.0,0.00058177]
[1742833207941,0.84247449,88244.0,88243.0,0.00058177]
[1742833208142,0.95973213,88244.0,88243.0,7.7e-07]
[1742833208364,0.95873213,88244.0,88243.0,7.7e-07]
[1742833208585,0.84247449,88244.0,88243.0,7.7e-07]
[1742833209132,0.84247449,88244.0,88219.0,0.10063572]
[1742833209133,0.011334,88224.0,88219.0,0.10063572]
[1742833209336,0.011334,88224.0,88223.0,5.8e-07]
[1742833209337,0.79526749,88224.0,88223.0,5.8e-07]
[1742833210385,0.33087485,88223.0,88222.0,4.8e-07]
[1742833210580,0.55939013,88223.0,88222.0,4.8e-07]
[1742833211035,0.56881249,88223.0,88222.0,4.8e-07]
[1742833211251,0.42559164,88223.0,88222.0,4.8e-07]
[1742833211455,0.311334,88223.0,88222.0,4.8e-07]
[1742833211675,0.2607542,88224.0,88222.0,4.8e-07]
[1742833211888,0.240032,88223.0,88222.0,4.8e-07]
[1742833213090,0.238032,88223.0,88222.0,4.8e-07]
[1742833214416,0.30881886,88223.0,88222.0,4.8e-07]
[1742833214621,0.7230765,88223.0,88222.0,4.8e-07]
[1742833214954,0.8483765,88223.0,88222.0,4.8e-07]
[1742833215161,0.7230765,88223.0,88222.0,4.8e-07]
[1742833215551,0.66683049,88223.0,88222.0,4.8e-07]
[1742833216686,0.67183049,88223.0,88222.0,4.8e-07]
[1742833216889,0.67637349,88223.0,88222.0,4.8e-07]
[1742833217221,0.67737349,88223.0,88222.0,4.8e-07]
[1742833217424,0.67637349,88223.0,88222.0,4.8e-07]
[1742833217670,0.79063113,88223.0,88222.0,4.8e-07]
[1742833217871,0.538059,88213.0,88212.0,0.0001699]
[1742833218070,0.79593749,88213.0,88212.0,0.0001699]
[1742833219051,0.84283749,88213.0,88211.0,0.002]
[1742833219276,0.84283749,88213.0,88211.0,3.3e-07]
[1742833219277,0.55439213,88212.0,88211.0,3.3e-07]
[1742833219871,0.44013449,88212.0,88211.0,3.3e-07]
[1742833220071,0.45123067,88212.0,88211.0,3.3e-07]
[1742833222205,0.45623067,88212.0,88211.0,3.3e-07]
[1742833222404,0.44789467,88212.0,88211.0,3.3e-07]
[1742833222790,0.13335382,88212.0,88211.0,3.3e-07]
[1742833222992,0.008,88212.0,88211.0,0.08270033]
[1742833223684,0.005,88212.0,88211.0,0.08270033]
[1742833224030,0.008,88212.0,88211.0,0.08270033]
[1742833224297,0.005,88212.0,88211.0,0.08270033]
[1742833225104,0.005,88212.0,88211.0,0.24515797]
[1742833226373,0.0003398,88223.0,88211.0,0.24515797]
[1742833226673,0.0003398,88223.0,88212.0,0.11425764]
[1742833227195,0.0003398,88223.0,88212.0,0.13877344]
[1742833227393,0.0003398,88223.0,88212.0,0.11425764]
[1742833228818,0.0003398,88223.0,88213.0,0.00226681]
[1742833229007,0.0003398,88223.0,88214.0,0.11425764]
[1742833229209,0.0003398,88223.0,88215.0,0.00226673]
[1742833230426,0.0003398,88223.0,88216.0,0.52325764]
[1742833230681,0.0003398,88223.0,88211.0,0.12630033]
[1742833231245,0.0003398,88223.0,88212.0,0.00226707]
[1742833231785,0.0003398,88223.0,88212.0,0.11652471]
[1742833232114,0.0003398,88223.0,88212.0,0.11425764]
[1742833232944,0.0003398,88223.0,88211.0,0.12647023]
[1742833234205,0.0003398,88223.0,88212.0,0.001]
[1742833234604,0.0003398,88223.0,88211.0,0.12647023]
[1742833234954,0.0003398,88223.0,88211.0,0.12747023]
[1742833235388,0.0003398,88223.0,88211.0,0.12647023]
[1742833235922,0.0003398,88223.0,88211.0,0.00017023]
[1742833236129,0.3,88221.0,88211.0,0.00017023]
[1742833236337,0.0588564,88220.0,88211.0,0.00017023]
[1742833236716,0.54321764,88221.0,88211.0,0.00017023]
[1742833237279,0.41425764,88221.0,88211.0,0.00017023]
[1742833237486,0.0003398,88223.0,88211.0,0.00017023]
[1742833237941,0.0003398,88223.0,88212.0,0.0792]
[1742833238281,0.0003398,88223.0,88213.0,0.0022669]
[1742833238940,0.0003398,88223.0,88212.0,0.0792]
[1742833239161,0.0003398,88223.0,88213.0,0.02083702]
[1742833239360,0.0003398,88223.0,88212.0,0.0792]
[1742833240345,0.0013398,88223.0,88212.0,0.0792]
[1742833241569,0.0013398,88223.0,88213.0,0.16552454]
[1742833243677,0.0003398,88223.0,88213.0,0.16552454]
[1742833244102,0.0013398,88223.0,88213.0,0.16552454]
[1742833244635,0.0003398,88223.0,88214.0,0.0761]
[1742833244798,0.0003398,88223.0,88215.0,0.11425764]
[1742833245003,0.0003398,88223.0,88216.0,0.0761]
[1742833245205,0.0003398,88223.0,88213.0,0.08638948]
[1742833245206,0.0003398,88223.0,88217.0,0.11425764]
[1742833245507,0.01454085,88220.0,88211.0,0.00017023]
[1742833245699,0.31454085,88218.0,88211.0,0.00017023]
[1742833245947,0.31454085,88216.0,88211.0,0.00017023]
[1742833246145,0.01454085,88214.0,88211.0,0.00017023]
[1742833246346,0.3,88212.0,88211.0,0.00017023]
[1742833247443,0.3,88212.0,88200.0,0.00149249]
[1742833247623,0.3,88212.0,88200.0,0.00161616]
[1742833247984,0.04519333,88211.0,88200.0,0.00161616]
[1742833248407,0.301,88212.0,88200.0,0.00161616]
[1742833248608,0.302,88212.0,88200.0,0.00161616]
[1742833248891,0.303,88212.0,88200.0,0.00161616]
[1742833250650,0.302,88212.0,88200.0,0.00161616]
[1742833250789,0.001,88211.0,88200.0,0.00161616]
[1742833251202,0.002,88211.0,88200.0,0.00161616]
[1742833251653,0.04739333,88211.0,88200.0,0.00161616]
[1742833251808,0.04539333,88211.0,88200.0,0.00161616]
[1742833252016,0.04739333,88211.0,88200.0,0.00161616]
[1742833252219,0.04839333,88211.0,88200.0,0.00161616]
[1742833252583,0.003,88211.0,88200.0,0.00161616]
[1742833252857,0.3,88209.0,88200.0,0.00161616]
[1742833253011,0.01454085,88206.0,88200.0,0.00161616]
[1742833253223,0.01454085,88203.0,88200.0,0.00161616]
[1742833253430,0.3,88201.0,88200.0,0.00161616]
[1742833253799,0.41425764,88201.0,88200.0,0.00161616]
[1742833255241,0.42573649,88201.0,88200.0,0.00161616]
[1742833255441,0.42573649,88201.0,88200.0,0.00361616]
[1742833256573,0.44790252,88201.0,88200.0,0.00361616]
[1742833257393,0.44790252,88201.0,88200.0,0.00378606]
[1742833257589,0.44790252,88201.0,88200.0,0.00178606]
[1742833257989,0.44790252,88201.0,88200.0,0.00278606]
[1742833258536,0.44790252,88201.0,88200.0,0.00178606]
[1742833258753,0.52013762,88201.0,88200.0,0.00278606]
[1742833259146,0.46244337,88201.0,88200.0,0.00178606]
[1742833259566,0.46244337,88201.0,88200.0,0.00278606]
[1742833260606,0.03364488,88201.0,88200.0,0.00278606]
[1742833261070,0.02216603,88201.0,88200.0,0.12648606]
[1742833262162,0.034066,88215.0,88200.0,0.12648606]
[1742833262388,0.04544176,88215.0,88200.0,0.12648606]
[1742833262610,0.13296434,88215.0,88200.0,0.12648606]
[1742833262800,0.09889834,88215.0,88200.0,0.12648606]
[1742833263384,0.02283344,88202.0,88200.0,0.12648606]
[1742833266133,0.02283344,88202.0,88200.0,0.12548606]
[1742833267144,0.02283344,88202.0,88200.0,0.12648606]
[1742833268023,0.02283344,88202.0,88200.0,0.13913467]
[1742833268341,0.3003398,88218.0,88200.0,0.12648606]
[1742833268774,0.0003398,88218.0,88201.0,0.00226728]
[1742833268974,0.01138704,88218.0,88201.0,0.00226728]
[1742833269313,0.0003398,88218.0,88201.0,0.00226728]
[1742833270124,0.0023398,88218.0,88203.0,0.0794]
[1742833270321,0.0033398,88218.0,88207.0,0.0794]
[1742833270523,0.0033398,88218.0,88204.0,0.24564466]
[1742833270524,0.0033398,88218.0,88216.0,0.025]
[1742833270746,0.0023398,88218.0,88217.0,0.24282413]
[1742833270945,0.0023398,88218.0,88217.0,0.26734005]
[1742833271153,0.0033398,88218.0,88217.0,0.26734005]
[1742833271552,0.0013398,88218.0,88217.0,0.26734005]
[1742833271957,0.0033398,88218.0,88217.0,0.26734005]
[1742833272158,0.0033398,88218.0,88217.0,0.39658005]
[1742833272600,0.0003398,88218.0,88217.0,0.39658005]
[1742833274318,0.0013398,88218.0,88217.0,0.39958005]
[1742833275371,0.0013398,88218.0,88217.0,0.4329271]
[1742833275963,0.0013398,88218.0,88217.0,0.4379271]
[1742833276419,0.0003398,88223.0,88221.0,0.005]
[1742833276556,0.0003398,88223.0,88222.0,0.60128638]
[1742833276757,0.0003398,88223.0,88222.0,0.59902035]
[1742833277603,0.011511,88270.0,88233.0,0.005]
[1742833277798,0.3,88273.0,88233.0,0.005]
[1742833277799,0.3,88273.0,88237.0,0.0815]
[1742833278001,0.034042,88280.0,88239.0,0.0815]
[1742833278201,0.15946919,88280.0,88241.0,0.0815]
[1742833278418,0.01116955,88280.0,88244.0,0.0757]
[1742833278623,0.034041,88286.0,88246.0,0.0757]
[1742833278830,0.03445084,88286.0,88248.0,0.0757]
[1742833279029,0.03445084,88286.0,88250.0,0.0757]
[1742833279255,0.02228178,88278.0,88251.0,0.14866549]
[1742833279460,0.00040984,88286.0,88251.0,0.14866549]
[1742833279857,0.00040984,88286.0,88251.0,0.14639996]
[1742833280062,0.01161562,88286.0,88252.0,0.00226547]
[1742833280275,0.02223867,88280.0,88254.0,0.1308]
[1742833280476,0.02723867,88280.0,88255.0,0.15512418]
[1742833280922,0.02223867,88280.0,88256.0,0.12908]
[1742833281110,0.02223867,88280.0,88257.0,0.11425764]
[1742833281471,0.01161562,88286.0,88259.0,0.082]
[1742833281703,0.01161562,88286.0,88260.0,0.11425764]
[1742833281704,0.01661562,88286.0,88260.0,0.11425764]
[1742833281895,0.01695542,88286.0,88261.0,0.03799326]
[1742833282114,0.01195542,88286.0,88262.0,0.11425764]
[1742833282452,0.02230674,88283.0,88263.0,0.00226526]
[1742833282624,0.02230674,88283.0,88264.0,0.11425764]
[1742833282831,0.005,88280.0,88265.0,0.00226529]
[1742833283035,0.005,88280.0,88266.0,0.13790926]
[1742833283434,0.01195542,88286.0,88266.0,0.13790926]
[1742833283595,0.02305042,88284.0,88266.0,0.13790926]
[1742833283961,0.003,88283.0,88266.0,0.13790926]
[1742833284265,0.001,88280.0,88266.0,0.13790926]
[1742833284437,0.001,88280.0,88267.0,0.01721492]
[1742833284643,0.02305042,88284.0,88268.0,0.11425764]
[1742833285051,0.02405042,88284.0,88268.0,0.11425764]
[1742833285437,0.02305042,88284.0,88268.0,0.11425764]
[1742833285836,0.02305042,88284.0,88262.0,0.12896]
[1742833286161,0.02305042,88284.0,88263.0,0.13621473]
[1742833286579,0.2218,88277.0,88235.0,0.0828]
[1742833286779,0.002,88280.0,88235.0,0.0828]
[1742833286780,0.3,88267.0,88235.0,0.0828]
[1742833286980,0.25322,88283.0,88236.0,0.11652377]
[1742833286981,0.3,88265.0,88236.0,0.11652377]
[1742833287158,0.11425764,88264.0,88237.0,0.03483595]
[1742833287363,0.42908,88265.0,88238.0,0.11652378]
[1742833287643,0.034046,88264.0,88238.0,0.11652378]
[1742833288038,0.02253098,88258.0,88238.0,0.11652378]
[1742833288245,0.02253098,88258.0,88239.0,0.16731954]
[1742833288460,0.02253098,88258.0,88240.0,0.11652361]
[1742833288668,0.02253098,88258.0,88240.0,0.11425764]
[1742833289231,0.02294057,88258.0,88240.0,0.11425764]
[1742833291072,0.02494057,88258.0,88241.0,0.00226598]
[1742833291250,0.02594057,88258.0,88242.0,0.15092996]
[1742833291475,0.02394057,88258.0,88243.0,0.00226598]
[1742833291677,0.02294057,88258.0,88244.0,0.11425764]
[1742833291844,0.02494057,88258.0,88245.0,0.00226598]
[1742833292215,0.00340959,88258.0,88246.0,0.01531959]
[1742833292344,0.00240959,88258.0,88247.0,0.00226597]
[1742833292551,0.00340959,88258.0,88247.0,0.00226597]
[1742833292986,0.00240959,88258.0,88247.0,0.00226597]
[1742833293188,0.00240959,88258.0,88248.0,0.11425764]
[1742833293391,0.00040959,88258.0,88251.0,0.0452]
[1742833293592,0.00040959,88258.0,88252.0,0.11652339]
[1742833293820,0.00274919,88258.0,88252.0,0.11652339]
[1742833294826,0.00074919,88258.0,88252.0,0.11652339]
[1742833295000,0.00074919,88258.0,88253.0,0.02686273]
[1742833295229,0.00374919,88258.0,88254.0,0.24564314]
[1742833295445,0.00374919,88258.0,88254.0,0.24337764]
[1742833295653,0.00274919,88258.0,88254.0,0.24337764]
[1742833296637,0.00074919,88258.0,88254.0,0.24437764]
[1742833296839,0.00074919,88258.0,88255.0,0.02349316]
[1742833297061,0.00074919,88258.0,88256.0,0.11425764]
[1742833298691,0.00074919,88258.0,88257.0,0.0022656]
[1742833298907,0.00074919,88258.0,88257.0,0.11652323]
[1742833299567,0.00074919,88258.0,88257.0,0.11425764]
[1742833299924,0.00074919,88258.0,88257.0,0.12957723]
[1742833300119,0.00074919,88258.0,88257.0,0.13057723]
[1742833301535,0.00074919,88258.0,88257.0,0.01731959]
[1742833301749,0.00074919,88258.0,88257.0,0.002]
[1742833303943,0.00074919,88258.0,88257.0,0.001]
[1742833304370,0.00174919,88258.0,88257.0,0.001]
[1742833305113,0.00174919,88258.0,88246.0,0.12876]
[1742833305511,0.00074919,88258.0,88246.0,0.12876]
[1742833305829,0.00174919,88258.0,88247.0,0.025906]
[1742833306253,0.00174919,88258.0,88246.0,0.12876]
[1742833306254,0.00174919,88258.0,88242.0,0.21028]
[1742833306487,0.00174919,88258.0,88243.0,0.11425764]
[1742833306656,0.00174919,88258.0,88242.0,0.0816]
[1742833306842,0.00174919,88258.0,88242.0,0.21028]
[1742833307228,0.00174919,88258.0,88242.0,0.12868]
[1742833307437,0.00074919,88258.0,88242.0,0.12868]
[1742833307629,0.00174919,88258.0,88242.0,0.12868]
[1742833308238,0.00074919,88258.0,88242.0,0.12868]
[1742833308687,0.00174919,88258.0,88242.0,0.12868]
[1742833309455,0.00174919,88258.0,88236.0,0.0806]
[1742833309657,0.00174919,88258.0,88237.0,0.13992364]
[1742833310266,0.3494,88256.0,88223.0,0.0001698]
[1742833310468,0.3,88254.0,88223.0,0.0001698]
[1742833310656,0.01454085,88251.0,88223.0,0.0001698]
[1742833310854,0.01454085,88248.0,88223.0,0.0001698]
[1742833311056,0.01454085,88245.0,88223.0,0.0001698]
[1742833311270,0.31454085,88243.0,88223.0,0.0001698]
[1742833311482,0.02286871,88232.0,88223.0,0.0001698]
[1742833311899,0.01454085,88231.0,88223.0,0.0001698]
[1742833312098,0.01454085,88228.0,88223.0,0.0001698]
[1742833312301,0.31454085,88226.0,88223.0,0.0001698]
[1742833312548,0.31454085,88224.0,88223.0,0.0001698]
[1742833312760,0.42879849,88224.0,88223.0,0.0001698]
[1742833313372,0.42879849,88224.0,88223.0,0.0011698]
[1742833314874,0.42979849,88224.0,88223.0,0.0001698]
[1742833315296,0.43079849,88224.0,88223.0,0.0001698]
[1742833317611,0.41625764,88224.0,88223.0,0.0001698]
[1742833317755,0.002,88224.0,88223.0,0.0001698]
[1742833323111,0.001,88224.0,88223.0,0.0001698]
[1742833323781,0.001,88224.0,88223.0,0.116694]
[1742833323967,0.002,88224.0,88223.0,0.58633573]
[1742833324177,0.002,88224.0,88223.0,0.58406917]
[1742833324550,0.001,88224.0,88223.0,0.28406917]
[1742833325521,0.01120174,88257.0,88225.0,0.025]
[1742833325737,0.01120174,88257.0,88226.0,0.14545048]